bitfinex/quotes_ETHUSD_20220308
["timestamp","ask_amount","ask_price","bid_price","bid_amount"]
[1646727058254,2.9056534,2533.1,2533.0,2.40330719]
[1646727058255,1.97435,2533.1,2533.0,2.40330719]
[1646727059154,1.97422,2533.2,2533.1,13.20323622]
[1646727059353,1.97422,2533.2,2533.1,3.24654341]
[1646727059552,1.97422,2533.2,2533.1,2.10330719]
[1646727059753,1.97422,2533.2,2533.1,14.16330719]
[1646727060154,1.97422,2533.2,2533.1,2.80606675]
[1646727060858,1.28709,2533.4,2533.1,2.80606675]
[1646727061058,1.28709,2533.4,2533.2,16.35934331]
[1646727061059,1.29236584,2533.4,2533.2,16.35934331]
[1646727061302,1.29236584,2533.4,2533.3,2.10330719]
[1646727061502,1.29236584,2533.4,2533.3,2.81642331]
[1646727061799,1.29236584,2533.4,2533.3,14.87642331]
[1646727062099,1.28709,2533.4,2533.3,14.87642331]
[1646727062299,0.3,2533.4,2533.3,14.16330719]
[1646727062802,0.98697,2533.7,2533.3,2.10330719]
[1646727063003,0.98697,2533.7,2533.4,2.32648127]
[1646727063304,0.98697,2533.7,2533.5,1.478]
[1646727063504,2.12751832,2533.7,2533.6,1.61230719]
[1646727063702,2.12751832,2533.7,2533.6,2.40330719]
[1646727065253,2.12751832,2533.7,2533.6,2.10330719]
[1646727066050,0.30529625,2533.8,2533.6,2.10330719]
[1646727066250,0.30529625,2533.8,2533.7,1.61230719]
[1646727066251,0.00529625,2533.8,2533.7,1.61230719]
[1646727066453,0.00529625,2533.8,2533.7,2.10330719]
[1646727066650,0.00529625,2533.8,2533.7,1.23920131]
[1646727066851,0.98685,2534.1,2533.7,0.52502723]
[1646727067050,0.98685,2534.1,2533.7,0.491]
[1646727067252,0.98685,2534.1,2533.8,1.183]
[1646727067452,1.03688999,2533.9,2533.8,2.16983]
[1646727068254,0.87260853,2533.9,2533.8,2.46983]
[1646727068456,0.87260853,2533.9,2533.8,2.16983]
[1646727068710,0.3049361,2534.0,2533.8,2.16983]
[1646727069500,0.31009414,2534.0,2533.9,1.674]
[1646727069700,0.98694,2533.9,2533.7,2.96044]
[1646727069901,0.98694,2533.9,2533.8,0.491]
[1646727070105,4.28694,2533.9,2533.2,1.20517408]
[1646727070301,4.28694,2533.9,2533.1,3.67505408]
[1646727070302,0.98709,2533.8,2533.1,3.67505408]
[1646727070702,0.98707,2533.6,2533.4,1.183]
[1646727070904,1.14833379,2533.5,2533.1,0.491]
[1646727071103,0.98707,2533.6,2533.1,0.491]
[1646727071307,0.98701,2533.5,2533.1,12.28199579]
[1646727071504,0.98701,2533.5,2533.3,6.62938]
[1646727071703,1.28701,2533.5,2533.4,3.991]
[1646727071906,2.27387,2533.5,2533.3,0.3]
[1646727072103,2.27903805,2533.5,2533.4,12.551]
[1646727072759,2.27387,2533.5,2533.4,0.491]
[1646727073259,2.27387,2533.5,2533.4,12.551]
[1646727074160,2.27387,2533.5,2533.4,1.47572397]
[1646727074359,2.337907,2533.5,2533.4,1.47572397]
[1646727074760,2.037907,2533.5,2533.4,1.47572397]
[1646727076216,1.93488317,2533.6,2533.5,12.06]
[1646727076405,0.1973,2534.8,2533.7,0.3978]
[1646727076604,3.5,2534.9,2533.9,13.44252397]
[1646727076804,2.30236684,2535.0,2534.3,12.06]
[1646727077005,2.30236684,2535.0,2534.4,13.53572397]
[1646727077204,0.98635,2534.8,2534.5,0.98472397]
[1646727077404,0.98635,2534.8,2534.7,0.98472397]
[1646727077608,2.30236684,2535.0,2534.7,13.04472397]
[1646727077807,0.1971,2535.4,2534.8,0.98472397]
[1646727078010,0.1971,2535.5,2535.0,13.04472397]
[1646727078212,3.5,2535.9,2535.2,0.98472397]
[1646727078213,0.98609,2535.7,2535.2,0.98472397]
[1646727078508,2.78809827,2536.1,2535.7,0.98472397]
[1646727078509,0.1972,2536.0,2535.7,0.98472397]
[1646727078710,0.1972,2536.0,2535.8,13.53572397]
[1646727078908,0.1971,2536.6,2536.0,13.04472397]
[1646727079111,2.34699091,2536.9,2536.2,13.04472397]
[1646727079311,2.34699091,2536.9,2536.4,13.04472397]
[1646727079509,0.98535,2537.5,2536.9,5.5]
[1646727079711,3.5,2537.9,2537.1,1.96565159]
[1646727079961,10.0428,2538.4,2537.1,1.96565159]
[1646727079962,3.5,2538.0,2537.3,0.98042159]
[1646727080163,0.197,2538.3,2537.4,0.98042159]
[1646727080366,0.7925,2538.4,2537.4,1.47142159]
[1646727080662,0.7925,2538.4,2537.6,1.183]
[1646727080663,1.97061,2537.7,2537.6,1.183]
[1646727080869,1.97061,2537.7,2537.6,1.674]
[1646727081064,1.97061,2537.7,2537.4,1.97053]
[1646727081362,1.97061,2537.7,2537.5,0.491]
[1646727081563,3.94121,2537.7,2537.6,0.491]
[1646727082264,3.94121,2537.7,2537.1,5.2985]
[1646727082265,3.94121,2537.7,2537.2,0.9852659]
[1646727082566,3.94121,2537.7,2537.5,0.98527]
[1646727082767,3.94121,2537.7,2537.6,0.491]
[1646727083170,1.9706,2537.7,2537.6,3.991]
[1646727083371,2.95874833,2537.8,2537.6,1.0937]
[1646727083570,2.95589,2537.8,2537.6,1.0937]
[1646727083804,0.02024579,2537.7,2537.6,1.0937]
[1646727084004,0.02024579,2537.7,2537.6,2.21689137]
[1646727084604,0.02024579,2537.7,2537.6,5.71689137]
[1646727085006,0.02024579,2537.7,2537.6,6.71689137]
[1646727085203,0.98531,2537.9,2537.8,0.82319137]
[1646727085403,0.98531,2537.9,2537.8,5.68719137]
[1646727085604,6.90169,2538.8,2537.9,6.32319137]
[1646727085813,7.29,2539.0,2538.2,0.82319137]
[1646727086108,0.98486,2538.7,2538.4,0.82319137]
[1646727086304,0.98486,2538.7,2538.5,1.31419137]
[1646727087561,0.98486,2538.7,2538.5,2.29904137]
[1646727087562,0.22256551,2538.6,2538.5,2.29904137]
[1646727087859,0.99032008,2538.7,2538.5,2.29904137]
[1646727087860,1.97520008,2538.7,2538.5,2.29904137]
[1646727088463,1.96974,2538.7,2538.5,2.29904137]
[1646727088664,1.97258274,2538.7,2538.5,2.29904137]
[1646727089063,2.27258274,2538.7,2538.5,2.29904137]
[1646727089663,2.26974,2538.7,2538.5,2.29904137]
[1646727089864,2.27258274,2538.7,2538.5,2.29904137]
[1646727090868,1.28486,2538.7,2538.6,1.183]
[1646727091069,1.96971,2538.9,2538.8,1.183]
[1646727091308,1.96971,2538.9,2538.8,1.974]
[1646727091505,0.01136926,2539.1,2538.8,1.974]
[1646727091707,0.98478,2539.1,2539.0,1.183]
[1646727091906,0.92378,2539.1,2539.0,2.6846]
[1646727092108,0.0079714,2539.7,2539.0,2.6846]
[1646727092109,0.0079714,2539.7,2539.0,6.1846]
[1646727092305,0.0079714,2539.7,2539.1,1.183]
[1646727092508,0.0079714,2539.7,2539.3,1.183]
[1646727092709,0.0079714,2539.7,2539.5,1.183]
[1646727092910,0.9844614,2539.7,2539.6,1.674]
[1646727093310,0.9844614,2539.7,2539.6,1.974]
[1646727094509,0.9844614,2539.7,2539.6,4.62715]
[1646727094710,0.9844614,2539.7,2539.6,1.183]
[1646727094953,3.9844614,2539.7,2539.6,1.183]
[1646727096356,3.9844614,2539.7,2539.4,1.96862]
[1646727096756,0.98453,2539.6,2539.4,1.96862]
[1646727097156,0.98453,2539.6,2539.4,2.26862]
[1646727097456,0.98453,2539.6,2539.5,0.89138275]
[1646727098059,1.2844614,2539.7,2539.5,0.89138275]
[1646727098259,0.9844614,2539.7,2539.5,0.89138275]
[1646727098804,0.98453,2539.6,2539.5,0.89138275]
[1646727099210,1.0002614,2539.7,2539.5,0.89138275]
[1646727099404,1.96901,2539.8,2539.7,0.40038275]
[1646727099609,0.04935448,2540.2,2539.7,5.64318275]
[1646727099805,0.04935448,2540.2,2539.9,0.40038275]
[1646727099806,2.72e-05,2540.2,2539.9,0.40038275]
[1646727100107,5.44e-05,2540.2,2540.1,0.40038275]
[1646727100308,0.00381,2540.5,2540.3,0.40038275]
[1646727100504,0.00381,2540.5,2540.1,0.791]
[1646727100505,0.00381,2540.5,2540.4,1.86531275]
[1646727100709,0.00381,2540.5,2540.4,2.16531275]
[1646727100911,1.98996585,2540.6,2540.5,5.89025275]
[1646727101127,0.1968,2541.3,2540.6,5.5294]
[1646727101311,0.3946,2542.0,2540.8,5.89025275]
[1646727101506,0.5913,2542.0,2541.0,0.39025275]
[1646727101713,0.98366,2541.2,2541.1,0.88125275]
[1646727101907,0.04888442,2541.6,2541.1,0.88125275]
[1646727102108,0.04661073,2541.2,2541.1,3.83250275]
[1646727102306,3.98393,2541.3,2541.1,3.83250275]
[1646727102563,0.04661073,2541.2,2541.1,3.83250275]
[1646727102963,3.91558202,2541.3,2541.1,3.83250275]
[1646727103164,4.89951202,2541.3,2541.1,3.83250275]
[1646727103564,1.89951202,2541.3,2541.1,3.83250275]
[1646727103967,1.89951202,2541.3,2541.1,4.13250275]
[1646727104169,1.89951202,2541.3,2541.1,5.13250275]
[1646727104368,1.89951202,2541.3,2541.2,0.1967]
[1646727104564,1.89951202,2541.3,2541.2,0.6877]
[1646727104765,1.89951202,2541.3,2541.2,1.07795275]
[1646727104964,1.89951202,2541.3,2541.2,0.88125275]
[1646727105567,1.89951202,2541.3,2541.2,1.07795275]
[1646727105767,1.97330542,2541.4,2541.2,2.05153275]
[1646727106214,1.97330542,2541.4,2541.3,1.58586666]
[1646727106406,1.96786,2541.4,2541.3,2.07686666]
[1646727106604,6.20365,2541.5,2541.3,1.18125275]
[1646727106804,0.00544537,2541.4,2541.3,4.13244275]
[1646727107007,0.00544537,2541.4,2541.3,4.32914275]
[1646727107207,0.00544537,2541.4,2541.3,4.31902275]
[1646727107608,9.20365,2541.5,2541.3,3.83244275]
[1646727107808,0.95836105,2541.4,2541.3,3.83244275]
[1646727108408,0.95836105,2541.4,2541.3,1.183]
[1646727108409,4.45836105,2541.4,2541.3,1.183]
[1646727108812,5.44236105,2541.4,2541.3,1.183]
[1646727109014,5.44236105,2541.4,2541.3,0.1702]
[1646727109211,1.94236105,2541.4,2541.3,0.1702]
[1646727109813,5.44236105,2541.4,2541.3,0.1702]
[1646727110059,1.94236105,2541.4,2541.3,0.1702]
[1646727110658,5.44236105,2541.4,2541.3,0.1702]
[1646727111060,1.94236105,2541.4,2541.3,0.1702]
[1646727111459,0.984,2541.4,2541.3,0.1702]
[1646727112664,3.984,2541.4,2541.3,0.1702]
[1646727113265,0.984,2541.4,2541.2,0.9837]
[1646727113727,2.02589142,2541.4,2541.2,1.2837]
[1646727113917,3.0,2541.3,2541.2,0.9837]
[1646727114319,3.0,2541.3,2540.3,7.90853271]
[1646727114320,0.98419,2541.0,2540.3,0.49615831]
[1646727114523,3.5,2540.9,2540.3,0.00515831]
[1646727114717,3.5,2540.9,2540.1,1.491]
[1646727114921,1.17352714,2540.5,2540.1,1.491]
[1646727115118,1.28435581,2540.2,2540.1,1.491]
[1646727115320,1.28435581,2540.2,2539.8,0.3937]
[1646727115521,5.22185581,2540.2,2539.8,0.3937]
[1646727115720,5.52185581,2540.2,2539.8,0.3937]
[1646727115920,7.7375,2540.2,2539.8,0.3937]
[1646727116129,1.28435581,2539.9,2539.3,0.491]
[1646727116321,6.75312,2540.2,2539.7,1.96901]
[1646727116322,0.98911256,2539.8,2539.7,1.96901]
[1646727116521,1.28435581,2539.8,2539.7,1.96901]
[1646727117126,1.28435581,2539.8,2539.6,1.49818467]
[1646727117560,1.28435581,2539.8,2539.7,1.183]
[1646727117759,1.28435581,2539.8,2539.7,3.45201]
[1646727118560,4.23767581,2539.8,2539.6,1.19818467]
[1646727118964,4.23767581,2539.8,2539.4,2.95321]
[1646727119165,4.23767581,2539.8,2539.3,0.491]
[1646727119166,0.98454,2539.6,2539.3,0.491]
[1646727119365,0.98449,2539.5,2539.3,0.491]
[1646727119562,1.28435581,2539.4,2539.3,0.491]
[1646727119762,1.28435581,2539.4,2539.3,2.46012]
[1646727119963,2.1918616,2539.5,2539.3,2.46557379]
[1646727120171,1.28449,2539.5,2539.3,2.46557379]
[1646727120363,1.28449,2539.5,2539.3,3.74998519]
[1646727120764,1.28449,2539.5,2539.3,5.73598519]
[1646727120965,1.28449,2539.5,2539.3,6.7305314]
[1646727121213,0.98454,2539.6,2539.3,8.16302125]
[1646727121709,0.98454,2539.6,2539.4,0.98437]
[1646727121910,0.98449,2539.5,2539.4,0.98437]
[1646727122112,0.98449,2539.5,2539.4,1.47537]
[1646727123415,1.28449,2539.5,2539.4,1.47537]
[1646727123815,4.78449,2539.5,2539.4,1.47537]
[1646727124117,4.78449,2539.5,2538.7,4.66974534]
[1646727124118,4.78449,2539.5,2538.7,5.66974534]
[1646727124414,4.78449,2539.5,2538.8,2.10013089]
[1646727124415,0.95726361,2539.2,2538.8,2.10013089]
[1646727124615,0.95726361,2539.2,2538.9,1.60913089]
[1646727124815,2.24161942,2539.2,2539.0,0.491]
[1646727125063,1.07745524,2539.7,2539.3,0.33239888]
[1646727125262,1.28435581,2539.4,2539.3,0.63239888]
[1646727125863,0.98472,2539.6,2539.3,1.61708888]
[1646727126263,0.98472,2539.6,2539.4,5.59986954]
[1646727126467,1.96866,2539.9,2539.5,3.5]
[1646727126664,0.98424,2540.0,2539.6,0.491]
[1646727126863,0.98424,2540.0,2539.9,1.08566911]
[1646727127064,0.98424,2540.0,2539.9,1.37666911]
[1646727127263,0.98423,2540.3,2539.9,6.78518565]
[1646727127264,1.96838,2540.3,2539.9,6.78518565]
[1646727127463,0.00281029,2540.5,2540.0,1.60842084]
[1646727127664,0.00281029,2540.5,2540.1,3.991]
[1646727127863,1.28435581,2540.6,2540.3,1.0]
[1646727127864,1.54291679,2540.6,2540.3,1.0]
[1646727128067,1.54291679,2540.6,2540.4,1.39847093]
[1646727128266,1.54291679,2540.6,2540.4,4.65049093]
[1646727128812,1.54291679,2540.6,2540.4,5.65049093]
[1646727130014,1.54291679,2540.6,2540.4,6.04829093]
[1646727130216,1.54291679,2540.6,2540.4,5.65049093]
[1646727130417,1.54291679,2540.6,2540.4,4.74302]
[1646727130621,1.54291679,2540.6,2540.4,5.92602]
[1646727131619,1.54291679,2540.6,2540.4,4.92602]
[1646727132019,1.54837201,2540.6,2540.4,4.92602]
[1646727132219,1.54837201,2540.6,2540.4,5.92602]
[1646727132478,1.54837201,2540.6,2540.4,4.92602]
[1646727132873,1.54291679,2540.6,2540.4,4.92602]
[1646727133179,1.54291679,2540.6,2540.4,5.92602]
[1646727133373,1.54837201,2540.6,2540.4,5.92602]
[1646727133973,1.54837201,2540.6,2540.4,4.92602]
[1646727134172,1.54291679,2540.6,2540.4,5.92602]
[1646727134573,1.54837201,2540.6,2540.4,5.92602]
[1646727135174,0.81697643,2540.8,2540.6,1.183]
[1646727135373,0.81697643,2540.8,2540.7,1.183]
[1646727137711,0.81697643,2540.8,2540.7,1.17554092]
[1646727143161,0.81697643,2540.8,2540.7,2.7838785]
[1646727143561,0.81697643,2540.8,2540.7,1.17554092]
[1646727144613,1.68419506,2540.8,2540.7,1.17554092]
[1646727145512,0.81697643,2540.8,2540.7,1.17554092]
[1646727147498,0.81697643,2540.8,2540.7,2.78388475]
[1646727147691,0.81697643,2540.8,2540.7,2.7310352]
[1646727149094,0.81697643,2540.8,2540.7,1.12269137]
[1646727149292,0.81697643,2540.8,2540.7,2.73103857]
[1646727149993,0.81697643,2540.8,2540.7,1.12269137]
[1646727150793,0.81697643,2540.8,2540.7,2.73106483]
[1646727151408,0.81697643,2540.8,2540.7,1.12269137]
[1646727151807,0.81697643,2540.8,2540.6,0.98417]
[1646727152207,0.81697643,2540.8,2540.7,0.592]
[1646727152407,0.81697643,2540.8,2540.6,0.98417]
[1646727152610,1.04189244,2540.7,2540.6,0.98417]
[1646727152810,3.01033244,2540.7,2540.4,2.95202]
[1646727153111,3.93684,2540.7,2540.5,1.60854687]
[1646727153712,4.33013,2541.6,2540.7,5.8]
[1646727153912,0.3938,2541.6,2540.9,0.9837687]
[1646727154118,0.44994247,2542.1,2541.9,1.09901229]
[1646727154119,1.96692,2542.0,2541.9,1.09901229]
[1646727154311,0.99992424,2542.1,2541.9,1.09901229]
[1646727154312,0.01640424,2542.1,2541.9,4.17631977]
[1646727154509,0.01640424,2542.1,2541.9,2.55829229]
[1646727154710,0.00096,2542.8,2542.0,5.5]
[1646727154977,0.00096,2542.8,2542.1,0.491]
[1646727154978,2.95019,2542.8,2542.1,0.491]
[1646727155168,0.98332,2542.5,2542.1,0.791]
[1646727155367,1.9667,2542.4,2542.1,0.791]
[1646727155969,1.9667,2542.4,2542.1,4.291]
[1646727156168,0.98334,2542.5,2542.2,5.5]
[1646727156367,0.98334,2542.5,2542.3,0.491]
[1646727156568,0.98334,2542.5,2542.3,1.64869127]
[1646727156771,0.98334,2542.5,2542.3,1.94869127]
[1646727156970,1.96646,2542.6,2542.3,1.94869127]
[1646727157169,1.96646,2542.6,2542.4,1.0]
[1646727157371,0.98322,2542.7,2542.5,0.491]
[1646727157568,0.98322,2542.7,2542.5,4.29758]
[1646727157769,0.00096,2543.2,2542.5,5.29758]
[1646727157968,7.4111,2543.3,2542.5,5.29758]
[1646727157969,1.9664,2543.3,2542.5,5.29758]
[1646727158169,1.9664,2543.3,2542.5,9.09758]
[1646727158369,0.05783,2543.0,2542.5,10.0807064]
[1646727158568,0.05783,2543.0,2542.7,0.98311]
[1646727158809,0.05783,2543.0,2542.7,1.47411]
[1646727159216,0.05783,2543.0,2542.8,1.20283444]
[1646727159417,0.05783,2543.0,2542.7,1.47411]
[1646727159619,1.04639905,2543.0,2542.7,1.47411]
[1646727159814,1.04639905,2543.0,2542.7,0.98311]
[1646727160217,0.98856905,2543.0,2542.7,0.98311]
[1646727160419,0.98856905,2543.0,2542.3,1.96708]
[1646727160420,2.95034,2542.9,2542.3,1.96708]
[1646727160620,1.05066103,2542.6,2542.3,1.96708]
[1646727160818,0.98361,2542.5,2542.3,1.96708]
[1646727161218,2.95034,2542.9,2542.3,1.96708]
[1646727161419,2.95034,2542.9,2542.4,3.5]
[1646727161617,2.95034,2542.9,2542.3,3.36088]
[1646727161618,2.95618905,2543.0,2542.7,1.96627]
[1646727161920,2.95074,2543.0,2542.7,2.45727]
[1646727162117,2.95074,2543.0,2542.8,0.93328594]
[1646727162316,2.95074,2543.0,2542.8,1.42428594]
[1646727162563,1.96626,2543.1,2542.8,1.42428594]
[1646727162963,1.96626,2543.1,2542.9,1.0]
[1646727163366,1.96626,2543.1,2542.8,0.491]
[1646727163765,0.05771,2542.9,2542.8,0.491]
[1646727164966,0.05771,2542.9,2542.7,1.96627]
[1646727165166,1.04105,2542.9,2542.7,1.96627]
[1646727165567,0.05771,2542.9,2542.7,1.96627]
[1646727165769,0.06316693,2542.9,2542.7,1.96627]
[1646727166411,0.26599883,2542.8,2542.7,1.96627]
[1646727166614,0.05771,2542.9,2542.7,1.96627]
[1646727167815,0.05771,2542.9,2542.7,3.02227107]
[1646727168114,0.05771,2542.9,2542.7,1.96627]
[1646727169313,0.06049781,2542.9,2542.7,1.96627]
[1646727169720,1.04382781,2542.9,2542.7,1.96627]
[1646727169971,0.98356,2542.8,2542.5,0.98358]
[1646727170759,0.86501547,2542.6,2542.5,0.98358]
[1646727171163,0.98353,2542.7,2542.5,0.98358]
[1646727172564,3.25069,2542.8,2542.5,0.98358]
[1646727172565,1.28356,2542.8,2542.5,0.98358]
[1646727172967,0.05771,2542.9,2542.5,0.98358]
[1646727173168,0.05771,2542.9,2542.5,1.77458]
[1646727173366,0.05771,2542.9,2542.7,1.09173719]
[1646727173566,0.05771,2542.9,2542.8,0.491]
[1646727174209,0.06317293,2542.9,2542.8,0.491]
[1646727175012,0.05771,2542.9,2542.8,0.491]
[1646727176113,0.05771,2542.9,2542.7,0.98334]
[1646727176712,0.31009131,2542.9,2542.7,0.98334]
[1646727176914,3.39451555,2542.8,2542.3,1.96713]
[1646727177111,0.27005098,2542.7,2542.3,1.96713]
[1646727177313,2.18191773,2542.8,2542.3,1.96713]
[1646727177566,0.25127603,2542.4,2542.3,1.96713]
[1646727177762,0.3,2542.8,2542.5,0.6451918]
[1646727177961,0.20989081,2542.7,2542.5,0.6451918]
[1646727178161,0.05771,2542.9,2542.5,0.6451918]
[1646727178162,1.0411,2542.9,2542.5,0.6451918]
[1646727178363,0.21704762,2542.8,2542.5,1.6287818]
[1646727178562,1.0411,2542.9,2542.5,1.6287818]
[1646727178761,0.05771,2542.9,2542.6,3.5]
[1646727178962,0.05771,2542.9,2542.7,1.9664]
[1646727178963,0.00528541,2542.8,2542.7,1.9664]
[1646727179363,0.00528541,2542.8,2542.7,2.7574]
[1646727179569,0.00528541,2542.8,2542.7,3.7574]
[1646727179763,0.26460318,2542.9,2542.7,3.7574]
[1646727179961,0.27840644,2542.8,2542.7,3.7574]
[1646727180168,0.05771,2542.9,2542.7,3.7574]
[1646727180562,0.3053101,2542.9,2542.7,2.4574]
[1646727180763,0.25445248,2542.8,2542.7,1.9664]
[1646727180962,0.05771,2542.9,2542.7,1.9664]
[1646727181246,1.04108,2542.9,2542.5,0.6451918]
[1646727181440,2.56461,2542.9,2542.5,0.6451918]
[1646727181646,1.21947729,2542.8,2542.5,0.6451918]
[1646727181842,1.21947729,2542.8,2541.3,1.491]
[1646727181843,3.01249914,2542.7,2541.3,1.491]
[1646727182043,1.23602914,2542.7,2541.3,1.0]
[1646727182441,0.98376,2542.5,2541.3,1.0]
[1646727182642,0.98376,2542.5,2541.4,0.90621228]
[1646727182643,1.18748542,2542.3,2541.4,0.90621228]
[1646727182848,2.41101542,2542.3,2541.4,0.90621228]
[1646727183243,2.41101542,2542.3,2541.9,0.9838]
[1646727183642,3.39471542,2542.3,2541.9,0.9838]
[1646727183843,1.22353,2542.3,2541.9,1.2838]
[1646727187270,1.22353,2542.3,2542.0,0.491]
[1646727187471,1.22353,2542.3,2542.1,1.0]
[1646727187669,1.22353,2542.3,2542.2,3.991]
[1646727187872,0.3,2542.4,2542.2,4.991]
[1646727188075,0.3,2542.4,2542.3,3.5]
[1646727188270,0.05771,2542.9,2542.3,3.5]
[1646727188271,0.05771,2542.9,2542.3,1.491]
[1646727188472,0.05771,2542.9,2542.6,1.0]
[1646727188719,0.05771,2542.9,2542.7,3.991]
[1646727188720,0.02146409,2542.8,2542.7,3.991]
[1646727188918,0.010707,2543.4,2542.8,5.5]
[1646727189117,0.010707,2543.4,2542.9,0.491]
[1646727189318,0.010707,2543.4,2543.1,1.0]
[1646727189519,0.010707,2543.4,2543.3,1.20499997]
[1646727189520,0.993857,2543.4,2543.3,1.20499997]
[1646727189818,0.993857,2543.4,2543.3,0.3]
[1646727190220,0.993857,2543.4,2543.2,1.28308]
[1646727191721,0.993857,2543.4,2543.2,0.98308]
[1646727191920,3.5,2543.3,2543.1,1.96616]
[1646727192121,0.98343,2543.1,2542.8,1.96669]
[1646727192320,2.20696,2543.1,2542.8,1.96669]
[1646727193276,5.70696,2543.1,2542.8,1.96669]
[1646727193473,6.6958736,2543.1,2542.6,0.00547471]
[1646727193673,1.22353,2543.0,2542.6,0.98897471]
[1646727194375,1.22353,2543.0,2542.6,0.9835]
[1646727194577,1.22900376,2542.9,2542.6,0.98897455]
[1646727194774,0.98343,2542.8,2542.6,0.98897455]
[1646727195376,1.28343,2542.8,2542.6,0.98897455]
[1646727195574,2.50696,2542.8,2542.6,0.9835]
[1646727195779,2.50696,2542.8,2542.6,0.98619683]
[1646727196615,2.50696,2542.8,2542.6,0.9835]
[1646727197016,2.50696,2542.8,2542.6,0.98886876]
[1646727197620,2.50696,2542.8,2542.6,0.00536876]
[1646727197819,2.93866,2542.8,2542.6,0.00536876]
[1646727198019,0.98352,2542.7,2542.6,0.9835]
[1646727198420,4.9057,2542.8,2542.6,0.00536876]
[1646727198819,4.9057,2542.8,2542.6,0.00322123]
[1646727199118,4.9057,2542.8,2542.5,1.60740814]
[1646727199319,0.00215962,2542.6,2542.4,1.96696]
[1646727199619,0.98568962,2542.6,2542.4,1.96696]
[1646727199988,0.98568962,2542.6,2542.5,1.60742645]
[1646727200575,0.98568962,2542.6,2542.5,0.86642644]
[1646727201576,0.00215962,2542.6,2542.5,0.86642644]
[1646727202474,0.00215962,2542.6,2542.4,1.97217966]
[1646727202475,0.00215962,2542.6,2542.4,0.00521966]
[1646727202683,0.00215962,2542.6,2541.5,0.70575445]
[1646727202980,0.00215962,2542.6,2541.4,0.70575445]
[1646727202981,0.9839,2542.1,2541.4,0.70575445]
[1646727203179,4.28389,2542.5,2541.5,0.70575445]
[1646727203380,1.53106372,2542.2,2541.4,1.68956445]
[1646727203583,1.53106372,2542.2,2541.5,2.67338445]
[1646727203584,3.49870372,2542.2,2541.5,2.67338445]
[1646727203815,3.19870372,2542.2,2541.6,1.183]
[1646727204013,0.98385,2542.0,2541.6,1.183]
[1646727204215,0.98385,2542.0,2541.7,0.00239488]
[1646727204620,2.26767,2542.0,2541.8,1.183]
[1646727205117,2.26767,2542.0,2541.7,0.98624488]
[1646727205118,2.26767,2542.0,2541.7,0.98385]
[1646727205415,2.26767,2542.0,2541.8,0.00239479]
[1646727205616,2.26767,2542.0,2541.8,1.96974479]
[1646727206319,1.96767,2542.0,2541.8,3.17770278]
[1646727206716,1.96767,2542.0,2541.8,3.18287072]
[1646727207317,2.26767,2542.0,2541.8,3.88862517]
[1646727207567,2.26767,2542.0,2541.8,3.88345723]
[1646727207768,2.26767,2542.0,2541.8,3.88599153]
[1646727207967,2.26767,2542.0,2541.8,3.18023708]
[1646727208773,2.26767,2542.0,2541.8,3.17770278]
[1646727208977,2.26767,2542.0,2541.8,3.88599153]
[1646727209171,2.26767,2542.0,2541.8,3.18023708]
[1646727209570,2.26767,2542.0,2541.7,1.68942445]
[1646727209770,2.26767,2542.0,2541.7,1.19675445]
[1646727209970,3.9347,2541.9,2541.7,1.19675445]
[1646727210172,1.96767,2542.0,2541.8,6.8440865]
[1646727210377,1.96767,2542.0,2541.9,5.3351947]
[1646727210671,1.96769,2542.1,2541.9,6.3351947]
[1646727210872,1.96769,2542.1,2541.9,7.3351947]
[1646727211318,1.96764,2542.2,2542.0,1.35781999]
[1646727211522,1.96764,2542.2,2542.1,1.20142773]
[1646727211715,4.23485,2542.3,2542.1,0.491]
[1646727211916,3.82179755,2542.3,2542.2,3.8933]
[1646727212117,3.82179755,2542.3,2542.2,5.8666]
[1646727212316,3.82179755,2542.3,2542.2,8.8174947]
[1646727212519,3.82179755,2542.3,2542.2,5.3174947]
[1646727212719,3.82179755,2542.3,2542.2,4.3666]
[1646727213121,3.82179755,2542.3,2542.2,2.791]
[1646727213321,3.82179755,2542.3,2542.2,1.50105275]
[1646727213520,3.82179755,2542.3,2542.2,0.791]
[1646727214720,3.82179755,2542.3,2542.2,1.89435275]
[1646727214978,0.98339,2542.3,2542.2,1.1843]
[1646727215266,0.98339,2542.3,2542.2,1.7418947]
[1646727215466,0.98339,2542.3,2542.2,1.9383947]
[1646727215665,0.98339,2542.3,2542.2,2.1705]
[1646727216068,2.26663,2542.4,2542.2,9.1610647]
[1646727216265,2.72096,2543.3,2542.3,20.15456397]
[1646727216266,0.0051527,2542.8,2542.3,20.15456397]
[1646727216465,0.0051527,2542.8,2542.7,1.89240642]
[1646727216768,0.0051527,2542.8,2542.7,2.38340642]
[1646727216966,0.0051527,2542.8,2542.7,4.91662694]
[1646727217169,1.96631,2542.9,2542.7,4.91662694]
[1646727217366,1.96631,2542.9,2542.7,5.89978694]
[1646727217570,1.96631,2542.9,2542.7,7.29308694]
[1646727217571,1.91026311,2542.9,2542.7,7.29308694]
[1646727217771,1.91026311,2542.9,2542.8,2.89134769]
[1646727217772,2.87304311,2542.9,2542.8,2.89134769]
[1646727217971,2.87304311,2542.9,2542.8,4.25054769]
[1646727218173,1.98655928,2543.3,2543.0,1.183]
[1646727218371,1.96595,2543.3,2543.2,1.183]
[1646727218570,1.96595,2543.3,2543.2,2.5419145]
[1646727218815,1.96595,2543.3,2543.2,2.8419145]
[1646727219814,1.96595,2543.3,2543.2,1.974]
[1646727220815,1.96595,2543.3,2543.2,2.9086962]
[1646727221420,1.96595,2543.3,2543.0,3.1454525]
[1646727221620,0.98302,2543.2,2543.0,0.1966]
[1646727221821,3.24907,2543.2,2543.1,0.491]
[1646727222124,2.26605,2543.2,2543.0,0.1966]
[1646727222320,2.26605,2543.2,2543.1,2.09831334]
[1646727222571,2.26605,2543.2,2543.0,0.1966]
[1646727222772,2.26605,2543.2,2543.1,0.491]
[1646727222970,3.19864884,2543.2,2542.8,0.1966]
[1646727223172,0.25160299,2543.1,2542.8,0.1966]